[Event "Canarian Championship Seniors 2022"]
[Site "Brena Baja La Palma"]
[Date "2022.06.04"]
[Round "6.3"]
[White "Haertl, Siegfried"]
[Black "Perez Aleman, Pedro Tomas"]
[Result "1/2-1/2"]
[ECO "A84"]
[WhiteElo "1932"]
[BlackElo "2047"]
[Annotator "TA"]
[PlyCount "101"]
[EventDate "2022.06.01"]
[EventType "swiss"]
[EventCountry "ESP"]
[SourceTitle "playchess.com"]
[Source "ChessBase"]
[SourceQuality "1"]
[TimeControl "5400+30"]

{[%evp 15,101,62,69,30,28,0,0,-8,0,-36,-7,-30,-11,-26,-26,-97,-101,-68,-56,-48,-31,-75,-18,-35,-17,-21,24,10,11,0,7,-19,-8,-16,-18,-60,-16,-25,0,0,0,0,0,-74,0,-138,0,0,0,0,0,0,0,0,63,47,105,95,91,89,151,0,0,0,6,7,35,0,0,0,8,0,0,0,8,8,8,0,0,-28,387,0,0,0,0,-125,-93,-97]} 1. d4 {[%emt 0:00:02]} d5 {[%emt 0:00:19]} 2. Nf3 {[%emt 0:00:09]} e6 {[%emt 0:00:40]} 3. c4 {[%emt 0:00:32]} c6 {[%emt 0:03:34]} 4. Nc3 {[%emt 0:01:05]} f5 {[%emt 0:00:08]} 5. Bf4 {[%emt 0:00:23]} Nf6 {[%emt 0:00:09]} 6. e3 {[%emt 0:00:27]} Be7 {[%emt 0:00:35]} 7. Bd3 {[%emt 0:00:53]} O-O {[%emt 0:00:09]} 8. O-O {[%emt 0:00:33]} Ne4 {[%emt 0:01:42]} 9. Nd2 {[%emt 0:04:38][%cal Rd2e4] A84: Dutch Defence: 2 c4 Miscellaneous.} g5 {[%emt 0:03:01]} 10. Bxb8 {[%emt 0:01:47]} (10. Ncxe4 dxe4 11. Bxb8 Rxb8) (10. Bxe4 gxf4 11. Bd3) (10. Ncxe4 dxe4 11. Bxb8 Rxb8 $15) 10... Rxb8 {[%emt 0:00:09]} 11. f3 {[%emt 0:02:34] [#] The position is equal.} Nf6 $146 {[%emt 0:03:40]} ({Predecessor:} 11... Nxd2 12. Qxd2 Bf6 13. Ne2 Kh8 14. Kh1 Rg8 15. Rad1 a6 16. e4 dxe4 17. fxe4 f4 {0-1 (57) Petlak,J (2011)-Danek,P (1968) Czech Republic 2006}) 12. c5 {[%emt 0:03:33]} g4 {[%emt 0:08:12]} (12... b6 13. b4 e5) 13. Qe2 {[%emt 0:04:29]} Kh8 {[%emt 0:01:32]} 14. Kh1 {[%emt 0:00:17]} Rg8 {[%emt 0:02:16]} 15. Qf2 {[%emt 0:02:23]} (15. Rab1) (15. b4 $11) 15... b6 {[%emt 0:00:47]} (15... g3 {is interesting.} 16. Qe2 gxh2 17. f4 b6) 16. b4 {[%emt 0:03:30]} bxc5 {[%emt 0:00:13]} (16... g3 17. hxg3 Nh5) (16... g3 $5 {[%cal Rg3f2]} 17. Qg1 (17. hxg3 Nh5 $17) 17... bxc5 18. bxc5 Rb2 $15) 17. bxc5 {[%emt 0:00:15]} Qa5 {[%emt 0:00:14]} (17... g3 18. Qg1 (18. hxg3 Nh5) 18... Rb2) 18. Nd1 {[%emt 0:05:34]} Ba6 {[%emt 0:00:48]} (18... g3 $17 19. hxg3 Qc7) 19. Qe2 $11 {[%emt 0:02:26]} Bxd3 {[%emt 0:11:02]} 20. Qxd3 {[%emt 0:00:18]} Qb5 {[%emt 0:00:19]} 21. Qxb5 {[%emt 0:02:39]} Rxb5 {[%emt 0:00:03]} 22. Nb3 {[%emt 0:00:08]} Bd8 {[%emt 0:02:58]} 23. Nc3 {[%emt 0:07:38]} Rb7 {[%emt 0:02:57]} 24. Ne2 {[%emt 0:00:43]} Bc7 {[%emt 0:02:09]} 25. Rac1 {[%emt 0:02:38]} Rg6 {[%emt 0:00:39]} (25... a5 26. Rc2 Rgb8) 26. Nf4 {[%emt 0:02:52]} Bxf4 {[%emt 0:00:51]} 27. exf4 {[%emt 0:00:04]} gxf3 {[%emt 0:00:36]} 28. Rxf3 {[%emt 0:01:59]} Ne4 {[%emt 0:05:47]} 29. Rc2 {[%emt 0:05:20]} (29. g3) (29. g3 $1 $11 {remains equal.}) 29... a5 {[%emt 0:05:40]} (29... Rb4) ({Black should try} 29... Rb4 $17) 30. h3 {[%emt 0:00:13]} (30. Kg1) (30. Kg1 $11) 30... h5 {[%emt 0:08:53]} (30... a4 $17 31. Na5 Rb1+ 32. Kh2 e5 33. fxe5 Kg7) 31. Nxa5 {[%emt 0:11:02]} Rb1+ {[%emt 0:00:23]} 32. Kh2 {[%emt 0:00:09]} h4 $1 {[%emt 0:00:37]} 33. Rb3 {[%emt 0:04:33]} (33. Nxc6 Ng3) 33... Rf1 {[%emt 0:02:25]} (33... Rxb3 $2 34. axb3 Rg3 35. b4 $18) 34. Rcb2 {[%emt 0:01:05]} (34. Nxc6 Ng3) 34... Ng3 {[%emt 0:07:28]} (34... Kh7 $1 $11) 35. Rb1 $1 $14 {[%emt 0:01:06]} (35. Rb8+ $2 Rg8 36. Rb1 (36. Rxg8+ Kxg8 37. Rb8+ Kf7 38. Rb7+ Kf6) 36... Rxb8 37. Rxf1 (37. Rxb8+ Kg7 38. Rb7+ Kf6) 37... Nxf1+ $19) 35... Rf2 {[%emt 0:00:04]} (35... Rxf4 $14 36. Nxc6 Rf2) 36. Rb8+ $16 {[%emt 0:03:33]} (36. Nxc6 $6 Nh5 37. Rg1 (37. Rb8+ Kh7 $11) 37... Nxf4 $11) 36... Kh7 {[%emt 0:01:18] [#]} 37. R1b7+ $1 {[%emt 0:00:15]} ({Much worse is} 37. Nxc6 $6 Nh5 38. Kh1 Rgxg2 39. R1b7+ Ng7 $11) 37... Rg7 {[%emt 0:00:06]} 38. Rxg7+ $2 {[%emt 0:00:27]} ({White should play} 38. Nxc6 $16 {Strongly threatening a4.} Nh5 39. Rxg7+ Kxg7 40. Rb7+ Kh6 41. Na7) 38... Kxg7 {[%emt 0:00:01][%mdl 4096] Endgame KRN-KRN} 39. Rb1 {[%emt 0:00:38] Threatens to win with Ra1.} (39. Nxc6 {gets mated.} Rf1) 39... Rxa2 {[%emt 0:02:42]} 40. Nxc6 {[%emt 0:00:12]} Rc2 {[%emt 0:01:39]} 41. Rb7+ {[%emt 0:04:04]} Kh6 {[%emt 0:06:03]} 42. Rb8 {[%emt 0:01:57]} Kg7 {[%emt 0:01:52]} (42... Rc1 $5 43. Rh8+ Kg7 44. Rxh4 Nf1+ 45. Kh1 Ng3+ 46. Kh2 Nf1+ 47. Kh1 Ng3+ 48. Kh2 $11) 43. Rb7+ {[%emt 0:00:53]} Kh6 {[%emt 0:01:19]} 44. Rb8 {[%emt 0:01:12]} Kg7 {[%emt 0:07:31] [#] ( -> ...Rc1)} 45. Rb1 {[%emt 0:04:03] Inhibits Rc1.} Ne2 {[%emt 0:00:11]} 46. Ne5 {[%emt 0:00:04]} Nxf4 {[%emt 0:00:08]} 47. c6 {[%emt 0:00:01] And now Rb5 would win.} Rxg2+ {[%emt 0:00:23]} (47... Ne2 $5 {[%cal Re2d4]} 48. Nf3 (48. Rb7+ Kf6 $15) 48... f4 $15) 48. Kh1 {[%emt 0:00:01] Rg1 is the strong threat.} Rc2 {[%emt 0:00:01]} 49. Rb7+ {[%emt 0:00:03]} Kh6 {[%emt 0:00:03]} 50. Re7 {[%emt 0:00:05]} (50. Nf7+ $11 {keeps the balance.} Kh5 51. c7) 50... Nxh3 $17 {[%emt 0:00:20] Hoping for ...Nf2+.} 51. Rxe6+ {[%emt 0:00:04] Weighted Error Value: White=0.32/Black=0.27 (precise)} 1/2-1/2

[Event "Canarian Championship Seniors 2022"]
[Site "Brena Baja La Palma"]
[Date "2022.06.04"]
[Round "6.4"]
[White "Iglesias Dominguez, Jacinto"]
[Black "Gonzalez Ortega, Jose Miguel"]
[Result "0-1"]
[ECO "A17"]
[WhiteElo "1382"]
[BlackElo "1726"]
[Annotator "NA RC COMBH"]
[PlyCount "121"]
[EventDate "2022.06.01"]
[EventType "swiss"]
[EventCountry "ESP"]
[SourceTitle "playchess.com"]
[Source "ChessBase"]
[SourceQuality "1"]
[TimeControl "5400+30"]

1. Nf3 {[%emt 0:00:07]} Nf6 {[%emt 0:00:12]} 2. c4 {[%emt 0:00:15]} c5 {[%emt 0:00:12]} 3. Nc3 {[%emt 0:00:16]} e6 {[%emt 0:00:27]} 4. d3 {[%emt 0:00:05]} b6 {[%emt 0:00:14]} 5. g3 {[%emt 0:00:04]} Bb7 {[%emt 0:00:21]} 6. Bg2 {[%emt 0:00:02]} Be7 {[%emt 0:00:17]} 7. O-O {[%emt 0:00:18]} O-O {[%emt 0:00:11]} 8. e4 {[%emt 0:00:09]} d6 {[%emt 0:01:02]} 9. Re1 {[%emt 0:00:32]} Nbd7 {[%emt 0:00:22]} 10. Be3 {[%emt 0:02:00]} a6 {[%emt 0:00:25]} 11. Nd2 {[%emt 0:00:38]} Qc7 {[%emt 0:00:37]} 12. f4 {[%emt 0:00:09]} Rad8 {[%emt 0:01:02]} 13. Nf3 {[%emt 0:00:08]} Qb8 {[%emt 0:03:38]} 14. Qc2 {[%emt 0:00:21]} Ng4 {[%emt 0:00:52]} 15. Rad1 {[%emt 0:00:15]} Nxe3 {[%emt 0:00:21]} 16. Rxe3 {[%emt 0:00:03]} Qa8 {[%emt 0:00:24]} 17. Rf1 {[%emt 0:00:33]} Bf6 {[%emt 0:00:55]} 18. a3 {[%emt 0:00:44]} Bd4 {[%emt 0:02:06]} 19. Qe2 {[%emt 0:00:28]} Nf6 20. h3 {[%emt 0:00:23]} Rfe8 {[%emt 0:01:56]} 21. Nd1 {[%emt 0:00:11]} Bxe3+ {[%emt 0:00:16]} 22. Nxe3 {[%emt 0:00:28]} b5 {[%emt 0:02:47]} 23. b3 {[%emt 0:01:34]} Bc6 {[%emt 0:00:51]} 24. Qc2 {[%emt 0:00:38]} bxc4 {[%emt 0:00:55]} 25. bxc4 Qc8 26. Ng5 {[%emt 0:01:47]} h6 {[%emt 0:00:54]} 27. Nf3 {[%emt 0:00:25]} Qd7 {[%emt 0:00:41]} 28. e5 {[%emt 0:00:06]} Bxf3 {[%emt 0:02:34]} 29. Rxf3 {[%emt 0:00:30]} Nh7 {[%emt 0:01:57]} 30. Ng4 {[%emt 0:00:08]} h5 {[%emt 0:01:10]} 31. Nf2 {[%emt 0:01:00]} dxe5 {[%emt 0:00:30]} 32. Ne4 {[%emt 0:01:31]} exf4 {[%emt 0:01:11]} 33. gxf4 {[%emt 0:00:57]} Qd4+ {[%emt 0:00:39]} 34. Kh2 {[%emt 0:00:20]} f5 {[%emt 0:00:38]} 35. Ng5 {[%emt 0:00:38]} Nxg5 {[%emt 0:00:21]} 36. fxg5 Rb8 37. Rf2 {[%emt 0:02:32]} h4 {[%emt 0:01:19]} 38. Qe2 {[%emt 0:01:40]} g6 {[%emt 0:00:31]} 39. Qf3 {[%emt 0:00:47]} Qd6+ {[%emt 0:02:08]} 40. Kg1 {[%emt 0:00:48]} Rb1+ {[%emt 0:00:43]} 41. Rf1 {[%emt 0:00:05]} Qd4+ {[%emt 0:00:55]} 42. Kh1 {[%emt 0:00:12]} Rxf1+ {[%emt 0:00:34]} 43. Bxf1 {[%emt 0:00:04]} Qd6 44. Qf2 {[%emt 0:00:50]} Qg3 {[%emt 0:02:29]} 45. Qxc5 {[%emt 0:00:59]} Rb8 {[%emt 0:02:08]} 46. Qd4 {[%emt 0:01:40]} Qf3+ {[%emt 0:01:07]} 47. Kg1 {[%emt 0:00:22]} Qg3+ {[%emt 0:01:52]} 48. Kh1 {[%emt 0:00:02]} Qxg5 {[%emt 0:00:43]} 49. Qe5 {[%emt 0:01:37]} Rb1 50. Qxe6+ {[%emt 0:00:22]} Kg7 {[%emt 0:05:26]} 51. Qe5+ {[%emt 0:00:23]} Kf7 {[%emt 0:00:54]} 52. Qc7+ {[%emt 0:01:42]} Qe7 {[%emt 0:00:17]} 53. Qxe7+ {[%emt 0:00:42]} Kxe7 {[%emt 0:00:08]} 54. Kg2 {[%emt 0:00:07]} Ra1 {[%emt 0:00:09]} 55. Kf2 {[%emt 0:00:25]} Rxa3 {[%emt 0:00:10]} 56. d4 {[%emt 0:00:59]} a5 {[%emt 0:00:25]} 57. c5 {[%emt 0:00:17]} a4 {[%emt 0:00:11]} 58. d5 {[%emt 0:00:41]} Rc3 {[%emt 0:00:16]} 59. c6 {[%emt 0:02:17]} Kd6 {[%emt 0:00:16]} 60. Bb5 {[%emt 0:00:17]} a3 {[%emt 0:00:37]} 61. Bf1 {[%emt 0:00:17]} 0-1